bitfinex-derivatives/quotes_SOLF0:USTF0_20250509
["timestamp","ask_amount","ask_price","bid_price","bid_amount"]
[1746810535331,196.0,170.92,170.77,31.08]
[1746810535637,227.34,170.92,170.77,34.8046]
[1746810535838,227.34,170.92,170.83,5.8533]
[1746810535839,5.8517,170.89,170.83,5.8533]
[1746810536042,31.84,170.91,170.78,2.0051]
[1746810536338,5.851,170.9,170.84,5.8529]
[1746810536640,31.84,170.91,170.78,2.0051]
[1746810537837,31.84,170.91,170.77,34.8046]
[1746810537838,31.84,170.91,170.77,3.7246]
[1746810538136,15.49828541,170.88,170.74,63.14]
[1746810538339,31.34,170.87,170.74,63.14]
[1746810538529,31.82,170.86,170.74,63.14]
[1746810538736,5.8538,170.82,170.77,5.8554]
[1746810539342,5.8535,170.83,170.77,5.8554]
[1746810539643,31.82,170.86,170.74,63.14]
[1746810539940,31.82,170.86,170.78,5.8551]
[1746810540139,31.82,170.86,170.74,63.14]
[1746810540534,15.49828541,170.85,170.74,63.14]
[1746810540737,15.49828541,170.85,170.72,5.7752]
[1746810540935,15.49828541,170.85,170.71,1.17157752]
[1746810541135,15.49828541,170.85,170.72,5.8572]
[1746810541345,15.49828541,170.85,170.71,1.17157752]
[1746810541939,5.8555,170.78,170.71,1.17157752]
[1746810542138,63.04,170.79,170.72,5.8571]
[1746810542334,63.04,170.79,170.71,1.17157752]
[1746810542537,5.8572,170.72,170.71,1.17157752]
[1746810543341,5.8567,170.74,170.71,1.17157752]
[1746810543542,15.49828541,170.81,170.71,1.17157752]
[1746810543739,63.12,170.8,170.71,1.17157752]
[1746810544346,5.8561,170.76,170.71,7.02907752]
[1746810544544,63.12,170.8,170.71,1.17157752]
[1746810544934,15.49828541,170.81,170.74,5.8563]
[1746810545139,63.14,170.8,170.71,1.17157752]
[1746810545545,5.8568,170.74,170.71,1.17157752]
[1746810546347,63.12,170.75,170.71,1.17157752]
[1746810546940,63.12,170.75,170.71,7.02887752]
[1746810547145,63.12,170.75,170.71,1.17157752]
[1746810547346,68.9765,170.75,170.71,7.02897752]
[1746810547535,63.12,170.75,170.71,1.17157752]
[1746810547940,31.32,170.75,170.71,1.17157752]
[1746810548338,31.34,170.81,170.71,1.17157752]
[1746810548543,5.8547,170.8,170.71,1.17157752]
[1746810548742,63.16,170.81,170.71,1.17157752]
[1746810549046,5.8532,170.84,170.72,1.9678]
[1746810549242,63.52,170.86,170.72,1.9678]
[1746810549443,31.34,170.86,170.72,1.9678]
[1746810549642,5.8528,170.85,170.81,5.8539]
[1746810550250,31.34,170.86,170.8,5.8544]
[1746810550448,31.34,170.86,170.76,63.5]
[1746810550751,32.1,170.85,170.76,63.5]
[1746810551348,32.1,170.85,170.72,65.3878]
[1746810551848,32.1,170.85,170.76,5.8557]
[1746810552344,5.8544,170.81,170.76,5.8557]
[1746810552544,32.1,170.85,170.76,5.8557]
[1746810553449,32.1,170.85,170.74,5.8562]
[1746810553646,15.49828541,170.84,170.74,5.8562]
[1746810553847,15.49828541,170.84,170.71,1.17157752]
[1746810554047,15.49828541,170.84,170.71,7.02907752]
[1746810554245,15.49828541,170.84,170.71,1.17157752]
[1746810554445,5.8558,170.77,170.71,1.17157752]
[1746810554750,69.2158,170.77,170.72,5.8569]
[1746810554946,69.2158,170.77,170.71,1.17157752]
[1746810554947,15.49828541,170.84,170.71,1.17157752]
[1746810555248,63.32,170.83,170.71,1.17157752]
[1746810555647,63.32,170.83,170.72,5.8571]
[1746810556251,15.49828541,170.79,170.71,1.17157752]
[1746810556451,63.32,170.78,170.63,541.1481]
[1746810556753,63.32,170.78,170.68,5.8583]
[1746810556945,63.32,170.78,170.63,541.1481]
[1746810557152,63.32,170.78,170.67,5.8587]
[1746810557442,63.32,170.78,170.63,541.1481]
[1746810557842,63.32,170.78,170.68,5.8585]
[1746810558042,569.48,170.78,170.63,35.0281]
[1746810558248,15.49828541,170.71,170.55,31.94]
[1746810558450,63.26,170.7,170.56,3.7576]
[1746810559049,63.26,170.7,170.63,5.8602]
[1746810559251,63.26,170.7,170.56,3.7576]
[1746810559651,5.8589,170.67,170.62,5.8604]
[1746810559851,5.8589,170.67,170.56,3.7576]
[1746810561450,5.8586,170.68,170.56,3.7576]
[1746810561650,5.8586,170.68,170.64,5.8597]
[1746810562252,5.8589,170.67,170.63,5.8602]
[1746810562653,5.8589,170.67,170.56,3.7576]
[1746810562952,5.8587,170.68,170.64,5.8598]
[1746810563453,63.26,170.7,170.64,5.8598]
[1746810564041,63.26,170.7,170.63,5.8602]
[1746810564241,63.26,170.7,170.56,3.7576]
[1746810564552,63.26,170.7,170.61,5.8606]
[1746810564749,5.859,170.67,170.56,3.7576]
[1746810564951,63.26,170.7,170.56,3.7576]
[1746810565255,63.26,170.7,170.6,5.8611]
[1746810565846,63.26,170.7,170.59,5.8616]
[1746810566049,15.49828541,170.67,170.56,3.7576]
[1746810566249,5.8599,170.65,170.56,3.7576]
[1746810566450,64.26,170.65,170.56,3.7576]
[1746810567352,37.9795,170.66,170.56,3.7576]
[1746810567851,32.12,170.66,170.56,3.7576]
[1746810568353,5.8597,170.65,170.61,5.8606]
[1746810568553,32.12,170.66,170.61,5.8606]
[1746810568757,32.12,170.66,170.56,3.7576]
[1746810569358,5.8609,170.62,170.58,5.8618]
[1746810569551,5.8609,170.62,170.56,3.7576]
[1746810569752,32.12,170.66,170.56,3.7576]
[1746810569959,32.12,170.66,170.56,9.6201]
[1746810570259,32.12,170.66,170.56,1.9255]
[1746810570459,32.12,170.66,170.54,31.32]
[1746810571153,32.12,170.66,170.57,5.8623]
[1746810571664,5.8616,170.6,170.56,5.8626]
[1746810571863,32.12,170.61,170.52,1.8253]
[1746810572063,32.12,170.6,170.52,1.8253]
[1746810572361,32.12,170.6,170.54,5.8632]
[1746810572563,32.12,170.6,170.52,1.8253]
[1746810572767,32.12,170.6,170.5,32.12]
[1746810572963,5.8629,170.56,170.52,5.864]
[1746810573163,5.8629,170.56,170.49,34.0073]
[1746810573369,32.12,170.6,170.49,1.8473]
[1746810573768,64.28,170.6,170.49,1.8473]
[1746810574068,5.8617,170.59,170.49,1.8473]
[1746810574267,32.12,170.6,170.49,1.8473]
[1746810574567,5.8626,170.57,170.54,5.8633]
[1746810574769,32.12,170.6,170.49,1.8473]
[1746810575067,5.8621,170.58,170.55,5.8627]
[1746810575470,32.12,170.6,170.49,1.8473]
[1746810575769,5.8627,170.57,170.49,1.8473]
[1746810576171,5.8634,170.55,170.51,5.8642]
[1746810576367,5.8634,170.55,170.49,1.8473]
[1746810576669,5.8634,170.55,170.51,5.8642]
[1746810576870,5.8634,170.55,170.49,1.8473]
[1746810577368,5.8625,170.57,170.49,1.8473]
[1746810577770,5.8628,170.56,170.49,1.8473]
[1746810577972,32.1,170.58,170.49,1.8473]
[1746810578272,15.49828541,170.63,170.49,1.8473]
[1746810578464,64.18,170.62,170.5,32.04]
[1746810578665,64.16,170.61,170.5,32.04]
[1746810578966,32.12,170.61,170.5,32.04]
[1746810579174,64.12,170.61,170.5,32.04]
[1746810579670,5.8613,170.6,170.58,5.862]
[1746810579862,64.12,170.61,170.58,5.862]
[1746810580069,69.9811,170.61,170.58,5.862]
[1746810580270,64.12,170.61,170.57,5.8622]
[1746810580472,64.12,170.61,170.52,32.12]
[1746810580775,69.9811,170.61,170.59,5.8616]
[1746810581277,32.12,170.61,170.6,5.8613]
[1746810581575,32.12,170.61,170.52,32.12]
[1746810582476,32.12,170.61,170.59,5.8615]
[1746810583076,37.981,170.61,170.59,5.8615]
[1746810584875,32.12,170.61,170.6,5.8613]
[1746810585082,15.49828541,170.71,170.55,31.96]
[1746810585378,64.08,170.66,170.56,5.7614]
[1746810585577,64.08,170.66,170.62,5.8604]
[1746810586274,15.49828541,170.71,170.63,5.8602]
[1746810586479,538.56,170.68,170.63,5.8602]
[1746810588581,538.56,170.68,170.58,31.8]
[1746810589579,5.8603,170.63,170.59,5.8614]
[1746810590578,5.86,170.64,170.6,5.8612]
[1746810590776,538.56,170.68,170.58,31.8]
[1746810591181,5.8592,170.67,170.62,5.8604]
[1746810591483,538.56,170.68,170.58,31.8]
[1746810591679,5.8589,170.67,170.63,5.86]
[1746810592679,5.8589,170.67,170.64,5.8599]
[1746810592977,37.9786,170.68,170.64,5.8599]
[1746810593184,32.12,170.68,170.58,31.8]
[1746810593581,5.8578,170.71,170.59,1.17240166]
[1746810593784,5.8578,170.71,170.67,5.8587]
[1746810593984,32.12,170.72,170.63,31.72]
[1746810594186,37.9775,170.72,170.69,5.8581]
[1746810594481,32.12,170.72,170.64,3.7077]
[1746810594679,32.12,170.72,170.65,1.9434]
[1746810594884,32.12,170.72,170.68,5.8583]
[1746810595075,32.12,170.72,170.65,1.9434]
[1746810595480,32.12,170.72,170.66,5.8592]
[1746810595886,5.8581,170.7,170.66,5.8592]
[1746810596083,32.12,170.72,170.64,3.7077]
[1746810596784,32.12,170.72,170.63,1.0]
[1746810597189,5.8596,170.66,170.63,1.0]
[1746810597691,5.859,170.67,170.63,6.8602]
[1746810597893,5.859,170.67,170.63,1.0]
[1746810598090,31.54,170.71,170.63,1.0]
[1746810598389,5.858,170.7,170.63,1.0]
[1746810599186,5.8583,170.69,170.63,1.0]
[1746810600291,5.8586,170.68,170.63,1.0]
[1746810600491,31.54,170.71,170.66,5.8592]
[1746810601289,31.54,170.71,170.63,1.0]
[1746810601893,32.12,170.72,170.68,5.8583]
[1746810602189,32.12,170.72,170.64,3.815]
[1746810603194,32.12,170.72,170.63,32.5]
[1746810603391,32.12,170.72,170.63,1.0]
[1746810604198,37.9773,170.72,170.63,1.0]
[1746810604590,37.9773,170.72,170.64,31.42]
[1746810604892,37.9773,170.72,170.69,5.858]
[1746810605093,32.12,170.72,170.64,31.42]
[1746810605393,32.12,170.72,170.63,1.0]
[1746810605793,32.12,170.72,170.64,5.8596]
[1746810606697,5.8588,170.68,170.65,5.8596]
[1746810606896,31.42,170.69,170.63,1.0]
[1746810607099,5.8591,170.67,170.64,5.8597]
[1746810607697,5.8587,170.68,170.65,5.8596]
[1746810607992,31.42,170.69,170.63,1.0]
[1746810608298,31.42,170.69,170.64,5.8599]
[1746810608497,31.42,170.69,170.63,1.0]
[1746810610001,5.8599,170.64,170.63,1.0]
[1746810610195,31.64,170.64,170.63,1.0]
[1746810611498,37.4986,170.68,170.63,1.0]
[1746810611797,31.64,170.68,170.64,5.8597]
[1746810612002,31.64,170.68,170.63,1.0]
[1746810613101,15.49828541,170.67,170.59,1.17240166]
[1746810613501,5.8609,170.62,170.59,1.17240166]
[1746810614104,5.8609,170.62,170.59,7.03410166]
[1746810614904,5.8611,170.61,170.59,1.17240166]
[1746810615104,31.64,170.63,170.59,1.17240166]
[1746810615304,31.64,170.63,170.61,5.8609]
[1746810615505,31.64,170.63,170.59,1.17240166]
[1746810617101,5.8612,170.61,170.59,1.17240166]
[1746810617902,5.8613,170.6,170.59,1.17240166]
[1746810621207,47.13828541,170.63,170.51,1.977]
[1746810621801,5.8622,170.58,170.51,1.977]
[1746810622709,5.8625,170.57,170.54,5.8631]
[1746810622902,47.13828541,170.63,170.54,5.8631]
[1746810623102,47.13828541,170.63,170.53,5.8636]
[1746810623304,47.13828541,170.63,170.51,1.977]
[1746810623608,5.862,170.59,170.55,5.863]
[1746810623807,31.2,170.59,170.55,5.863]
[1746810624309,31.2,170.59,170.54,5.8632]
[1746810624509,31.2,170.59,170.51,1.977]
[1746810625009,31.64,170.63,170.51,1.977]
[1746810625907,5.8618,170.59,170.51,1.977]
[1746810626209,31.64,170.63,170.51,1.977]
[1746810626708,62.78,170.63,170.51,1.977]
[1746810627410,5.8617,170.59,170.56,5.8625]
[1746810627713,62.78,170.63,170.51,1.977]
[1746810627906,5.862,170.58,170.51,1.977]
[1746810628102,62.78,170.63,170.51,1.977]
[1746810628409,5.8626,170.57,170.54,5.8631]
[1746810629513,5.8626,170.57,170.55,5.863]
[1746810629910,62.78,170.63,170.56,5.8627]
[1746810630111,62.78,170.63,170.51,1.977]
[1746810630415,5.8612,170.61,170.58,5.8618]
[1746810630615,5.8612,170.61,170.51,1.977]
[1746810630917,5.8607,170.62,170.51,13.7057]
[1746810631112,62.78,170.63,170.51,14.87865173]
[1746810631415,5.8612,170.61,170.51,14.87865173]
[1746810631615,62.78,170.63,170.51,14.87865173]
[1746810632116,5.8614,170.6,170.51,14.87865173]
[1746810632415,62.78,170.63,170.51,14.87865173]
[1746810632615,5.8611,170.61,170.51,14.87865173]
[1746810632818,62.78,170.63,170.51,14.87865173]
[1746810633312,37.5006,170.63,170.52,11.728]
[1746810633505,196.0,170.66,170.53,31.14]
[1746810633710,196.0,170.66,170.54,32.827]
[1746810633912,5.8599,170.64,170.61,5.8608]
[1746810634612,196.0,170.66,170.6,5.8612]
[1746810634817,61.96,170.67,170.6,5.8612]
[1746810635212,5.8606,170.63,170.6,5.8612]
[1746810635417,5.8606,170.63,170.61,5.8609]
[1746810635620,61.96,170.67,170.55,1.9672]
[1746810636017,61.96,170.67,170.62,5.8604]
[1746810636213,61.96,170.67,170.55,1.9672]
[1746810636414,61.96,170.67,170.63,5.8601]
[1746810636718,61.96,170.67,170.55,1.9672]
[1746810636920,61.96,170.67,170.63,5.86]
[1746810637220,61.96,170.67,170.55,1.9672]
[1746810637420,61.96,170.67,170.64,5.8596]
[1746810637718,61.96,170.67,170.58,31.14]
[1746810638421,5.8598,170.65,170.62,5.8604]
[1746810638816,61.96,170.67,170.58,31.14]
[1746810639220,61.96,170.67,170.61,5.8607]
[1746810639221,5.86,170.64,170.61,5.8607]
[1746810639416,61.96,170.67,170.61,5.8607]
[1746810639614,61.96,170.67,170.58,31.14]
[1746810640017,5.8597,170.65,170.58,31.14]
[1746810640316,61.96,170.67,170.58,31.14]
[1746810640516,5.8603,170.64,170.61,5.8607]
[1746810640723,61.96,170.67,170.58,31.14]
[1746810641019,5.8593,170.66,170.63,5.8601]
[1746810641420,31.14,170.67,170.58,33.1199]
[1746810641618,31.14,170.67,170.66,5.8593]
[1746810641818,30.68,170.7,170.66,5.8593]
[1746810642018,5.8593,170.66,170.58,33.1199]
[1746810643118,5.859,170.67,170.64,5.8599]
[1746810643327,31.14,170.71,170.58,33.1199]
[1746810643518,31.14,170.71,170.59,1.17240166]
[1746810643718,5.8579,170.7,170.67,5.8587]
[1746810643923,5.8579,170.7,170.62,30.68]
[1746810644325,31.14,170.71,170.62,30.68]
[1746810644520,31.14,170.71,170.63,1.8269]
[1746810644719,36.9976,170.71,170.69,5.8582]
[1746810645122,31.14,170.71,170.63,32.9669]
[1746810645316,5.8573,170.72,170.69,5.858]
[1746810645826,5.8578,170.71,170.68,5.8583]
[1746810646231,31.14,170.75,170.63,34.9045]
[1746810646422,30.54,170.74,170.63,34.9045]
[1746810646622,31.14,170.75,170.63,34.9045]
[1746810646818,5.856,170.76,170.63,34.9045]
[1746810647121,61.64,170.78,170.63,96.9045]
[1746810647525,31.14,170.78,170.64,15.49828541]
[1746810647727,31.14,170.78,170.65,1.17198945]
[1746810647926,31.14,170.78,170.65,2.98058945]
[1746810648127,31.14,170.78,170.65,14.69968945]
[1746810648731,31.14,170.78,170.75,5.8559]
[1746810648930,5.8549,170.79,170.71,61.56]
[1746810649130,5.8549,170.79,170.72,3.685]
[1746810649425,5.8551,170.78,170.72,3.685]
[1746810650129,5.8549,170.79,170.72,3.685]
[1746810650630,5.8549,170.79,170.76,5.8556]
[1746810650933,31.14,170.82,170.72,3.685]
[1746810651527,5.8552,170.78,170.75,5.8562]
[1746810651831,31.14,170.82,170.72,3.685]
[1746810652030,5.8554,170.78,170.74,5.8563]
[1746810652232,31.14,170.82,170.74,5.8563]
[1746810652427,5.8555,170.77,170.74,5.8563]
[1746810652623,5.8555,170.77,170.73,5.8568]
[1746810652824,31.14,170.82,170.72,3.685]
[1746810653028,5.856,170.76,170.72,3.685]
[1746810653224,31.14,170.82,170.72,3.685]
[1746810653726,5.8554,170.78,170.72,3.685]
[1746810653924,5.8554,170.78,170.74,5.8563]
[1746810654336,5.8555,170.77,170.74,5.8563]
[1746810655237,5.8552,170.78,170.74,5.8563]
[1746810656035,5.8555,170.77,170.73,5.8568]
[1746810656236,31.14,170.82,170.72,3.685]
[1746810656637,5.8564,170.75,170.72,3.685]
[1746810657538,5.8564,170.75,170.74,1.0]
[1746810658728,30.32,170.77,170.74,1.0]
[1746810659841,5.8562,170.75,170.74,1.0]
[1746810660440,30.32,170.77,170.66,3.7796]
[1746810660939,30.32,170.77,170.68,5.8586]
[1746810661243,30.32,170.77,170.66,1.8747]
[1746810661936,5.857,170.73,170.69,5.8581]
[1746810662137,5.857,170.73,170.66,1.8747]
[1746810662440,30.32,170.77,170.66,1.8747]
[1746810662637,30.24,170.73,170.66,1.8747]
[1746810662845,30.32,170.72,170.66,1.8747]
[1746810663045,5.8584,170.69,170.65,7.03158945]
[1746810663241,30.32,170.72,170.65,1.17198945]
[1746810663638,5.8582,170.7,170.66,5.859]
[1746810664338,5.8593,170.66,170.65,1.17198945]
[1746810664541,15.49828541,170.72,170.65,1.17198945]
[1746810664742,60.86,170.71,170.65,1.17198945]
[1746810664944,60.86,170.71,170.63,5.8602]
[1746810665345,60.86,170.71,170.58,30.56]
[1746810665643,60.86,170.71,170.57,3.7559]
[1746810666043,5.8595,170.66,170.61,5.8609]
[1746810666244,36.4195,170.66,170.57,3.7559]
[1746810666446,36.4195,170.66,170.62,5.8605]
[1746810667348,5.8595,170.66,170.62,5.8605]
[1746810667847,5.859,170.67,170.63,5.8602]
[1746810668042,60.84,170.68,170.57,34.2759]
[1746810668747,5.86,170.64,170.6,5.8611]
[1746810669049,60.84,170.68,170.57,34.2759]
[1746810669241,60.84,170.68,170.57,3.7559]
[1746810669441,60.84,170.68,170.6,5.8613]
[1746810669842,5.8603,170.64,170.6,5.8613]
[1746810670049,60.84,170.68,170.6,5.8613]
[1746810670250,60.84,170.68,170.57,3.7559]
[1746810670442,5.8605,170.63,170.57,3.7559]
[1746810670745,60.84,170.68,170.58,5.8619]
[1746810670949,5.8598,170.65,170.57,3.7559]
[1746810671246,30.32,170.67,170.57,3.7559]
[1746810671546,60.76,170.67,170.57,3.7559]
[1746810671747,5.8598,170.65,170.57,3.7559]
[1746810672050,60.76,170.67,170.57,3.7559]
[1746810672247,60.76,170.67,170.57,4.92843913]
[1746810672447,15.49828541,170.72,170.57,4.92843913]
[1746810672648,5.8595,170.66,170.57,4.92843913]
[1746810672844,60.8,170.66,170.57,4.92843913]
[1746810673053,60.8,170.66,170.59,5.8615]
[1746810673252,60.8,170.66,170.57,4.92843913]
[1746810673554,60.8,170.66,170.6,5.861]
[1746810673743,60.8,170.66,170.57,4.92843913]
[1746810674249,5.8602,170.64,170.6,5.8611]
[1746810674449,60.8,170.66,170.57,4.92843913]
[1746810674650,60.8,170.67,170.57,4.92843913]
[1746810674948,5.8595,170.66,170.57,4.92843913]
[1746810675449,5.8597,170.65,170.57,4.92843913]
[1746810676250,60.78,170.67,170.57,4.92843913]
[1746810676452,30.32,170.67,170.57,4.92843913]
[1746810676746,30.32,170.67,170.65,5.8595]
[1746810676951,30.32,170.67,170.6,60.76]
[1746810677151,30.32,170.72,170.6,60.76]
[1746810677346,60.76,170.72,170.6,60.76]
[1746810677546,5.8581,170.7,170.67,5.8587]
[1746810677848,30.32,170.72,170.6,60.76]
[1746810678146,196.0,170.77,170.6,76.25828541]
[1746810678344,30.32,170.75,170.6,76.25828541]
[1746810678549,60.7,170.75,170.61,1.17226422]
[1746810678745,5.8571,170.73,170.69,5.858]
[1746810678950,5.8571,170.73,170.65,60.68]
[1746810679149,5.8571,170.73,170.66,3.9605]
[1746810679450,5.8571,170.73,170.7,5.8578]
[1746810679749,5.8572,170.72,170.66,3.9605]
[1746810679951,5.8572,170.72,170.69,5.858]
[1746810680852,5.8582,170.7,170.67,5.8589]
[1746810681250,60.64,170.76,170.67,5.8589]
[1746810681450,60.64,170.76,170.66,9.8197]
[1746810681748,72.3521,170.76,170.61,1.17226422]
[1746810681956,15.49828541,170.74,170.61,4.94586422]
[1746810682752,60.56,170.73,170.61,4.94586422]
[1746810682952,5.8578,170.71,170.67,5.8588]
[1746810683348,60.56,170.73,170.61,4.94586422]
[1746810684146,5.858,170.7,170.67,5.8589]
[1746810684446,60.56,170.73,170.61,4.94586422]
[1746810685048,60.48,170.76,170.61,4.94586422]
[1746810685247,60.48,170.76,170.62,30.16]
[1746810685952,60.48,170.76,170.67,5.8589]
[1746810686353,60.48,170.76,170.62,30.16]
[1746810687055,5.8581,170.7,170.67,5.8589]
[1746810687349,60.48,170.76,170.62,30.16]
[1746810687745,5.8577,170.71,170.62,30.16]
[1746810687951,60.48,170.76,170.62,30.16]
[1746810688451,5.8573,170.72,170.62,30.16]
[1746810688651,5.8573,170.72,170.63,1.17212682]
[1746810688853,5.857,170.73,170.63,1.17212682]
[1746810689155,60.48,170.76,170.64,61.9559]
[1746810689557,5.8572,170.72,170.69,5.858]
[1746810689955,60.48,170.76,170.67,5.8587]
[1746810690158,75.97828541,170.76,170.67,5.8587]
[1746810690361,75.97828541,170.76,170.64,61.9359]
[1746810691259,15.49828541,170.76,170.64,61.9359]
[1746810691455,60.08,170.75,170.64,61.9359]
[1746810691655,5.8572,170.73,170.69,5.858]
[1746810691857,60.08,170.75,170.64,61.9359]
[1746810692262,5.8574,170.72,170.68,5.8583]
[1746810692461,60.08,170.75,170.64,61.9359]
[1746810692958,5.8572,170.72,170.69,5.858]
[1746810693161,15.49828541,170.76,170.64,61.9359]
[1746810693356,30.06,170.77,170.65,1.17198945]
[1746810693556,30.06,170.77,170.74,5.8565]
[1746810693557,35.9157,170.77,170.74,5.8565]
[1746810693756,30.06,170.77,170.69,29.92]
[1746810694061,5.856,170.76,170.69,29.92]
[1746810694262,30.06,170.77,170.69,29.92]
[1746810694462,30.06,170.77,170.69,59.98]
[1746810694661,30.06,170.77,170.76,5.8558]
[1746810694859,30.06,170.81,170.7,3.7579]
[1746810695064,5.8547,170.8,170.76,5.8556]
[1746810695265,5.8547,170.8,170.71,1.873]
[1746810695566,30.06,170.81,170.71,1.873]
[1746810695860,35.9143,170.81,170.71,1.873]
[1746810696265,30.06,170.81,170.71,1.873]
[1746810696468,30.06,170.81,170.72,1.1715089]
[1746810696667,59.98,170.85,170.72,1.1715089]
[1746810696868,30.06,170.85,170.72,1.1715089]
[1746810697263,5.854,170.82,170.79,5.8548]
[1746810697465,30.06,170.85,170.75,29.92]
[1746810698366,5.8544,170.81,170.77,5.8552]
[1746810698566,30.06,170.85,170.77,5.8552]
[1746810698962,5.8547,170.8,170.77,5.8552]
[1746810699161,5.8547,170.8,170.76,5.8557]
[1746810699366,30.06,170.85,170.75,29.92]
[1746810699665,5.8538,170.82,170.78,5.8551]
[1746810700567,5.8541,170.81,170.78,5.8551]
[1746810700764,30.06,170.85,170.79,5.8547]
[1746810700965,506.34,170.87,170.75,29.92]
[1746810701163,5.8531,170.84,170.76,1.17123448]
[1746810701367,5.8531,170.84,170.77,1.8428]
[1746810701871,5.8529,170.85,170.82,5.8537]
[1746810702172,30.06,170.86,170.77,3.8097]
[1746810702368,30.06,170.86,170.83,5.8532]
[1746810703467,30.06,170.9,170.84,5.8531]
[1746810703668,5.8519,170.88,170.8,29.78]
[1746810704071,30.06,170.9,170.83,5.8532]
[1746810704269,5.8523,170.87,170.8,29.78]
[1746810705073,29.72,170.86,170.78,1.17109731]
[1746810705273,30.04,170.85,170.78,1.17109731]
[1746810705769,5.8542,170.81,170.78,7.02589731]
[1746810706272,5.8539,170.82,170.79,5.8548]
[1746810706476,30.04,170.85,170.79,5.8548]
[1746810707175,5.854,170.82,170.79,5.8548]
[1746810707881,5.8541,170.81,170.78,7.02609731]
[1746810708476,5.8541,170.81,170.78,1.17109731]
[1746810709079,5.8541,170.81,170.78,7.02619731]
[1746810710080,30.04,170.85,170.79,5.8547]
[1746810710274,30.04,170.85,170.78,1.17109731]
[1746810710678,30.04,170.85,170.78,30.65109731]
[1746810710879,5.8536,170.83,170.8,5.8542]
[1746810711278,5.8536,170.83,170.81,5.8541]
[1746810711479,30.04,170.85,170.78,60.69109731]
[1746810711677,59.48,170.89,170.78,60.69109731]
[1746810711879,30.04,170.89,170.82,5.8535]
[1746810712178,5.8528,170.85,170.82,5.8535]
[1746810712483,5.8529,170.85,170.78,60.69109731]
[1746810712683,5.8529,170.85,170.79,1.17102874]
[1746810712879,5.8529,170.85,170.82,5.8535]
[1746810713080,5.8529,170.85,170.79,1.17102874]
[1746810713280,5.8526,170.86,170.83,5.8532]
[1746810713481,5.8526,170.86,170.79,1.17102874]
[1746810713874,5.8526,170.86,170.83,5.8532]
[1746810714079,5.8526,170.86,170.8,1.8224]
[1746810714279,30.04,170.89,170.86,5.8523]
[1746810715087,30.04,170.94,170.83,29.5]
[1746810715286,30.04,170.94,170.83,59.54]
[1746810715686,15.49828541,170.93,170.81,3.8229]
[1746810715992,5.8523,170.87,170.82,29.68]
[1746810716289,15.49828541,170.93,170.82,29.68]
[1746810716691,15.49828541,170.93,170.84,5.8528]
[1746810716991,15.49828541,170.93,170.82,29.68]
[1746810717191,15.49828541,170.93,170.83,5.8533]
[1746810717491,1.0428605,170.92,170.81,63.5029]
[1746810718284,30.04,170.94,170.81,63.5029]
[1746810718490,5.8519,170.88,170.81,63.5029]